{"text_format":"3","workbook":"xlsx","n_sheets":2,"sheets":["Счет за обслуживание","Использование шаблона"],"not_rendered":{"images":5,"defined_names":1},"read":"whole","date_system":"1900"}

{"sheet":"Счет за обслуживание","index":0,"n_rows":42,"n_cols":7,"rows_kept":42,"merged":[[0,2,0,3],[0,4,0,6],[1,1,1,2],[1,3,1,6],[3,2,3,3],[3,5,3,7],[4,2,4,3],[5,2,5,3],[6,2,6,3],[8,2,8,3],[9,2,9,3],[10,2,10,3],[11,2,11,3],[12,2,12,3],[13,1,13,6],[14,4,14,5],[15,4,15,5],[17,3,17,4],[18,3,18,4],[19,3,19,4],[20,3,20,4],[21,3,21,4],[22,3,22,4],[23,3,23,4],[24,3,24,4],[25,3,25,4],[26,3,26,4],[27,3,27,4],[28,3,28,4],[29,3,29,4],[30,3,30,4],[31,3,31,4],[32,3,32,4],[33,3,33,4],[34,3,34,4],[35,3,35,4],[36,3,36,4],[40,2,40,6],[41,2,41,6],[43,2,43,5]]}
[null,null,"[Девиз вашей организации]",null,"СЧЕТ"]
[]
[null,null,"[Название вашей организации]"]
[null,null,"[Почтовый адрес]",null,"Счет №:","[100]"]
[null,null,"[Область, город, почтовый индекс]",null,"Дата:",{"$f":"TODAY()","v":"2011-12-09"}]
[null,null,"[Телефон] [Факс]",null,"Код клиента:","[ABC12345]"]
[null,null,"[Электронная почта]"]
[]
[null,"TO","[ФИО]"]
[null,null,"[Название организации]"]
[null,null,"[Почтовый адрес]"]
[null,null,"[Область, город, почтовый индекс]"]
[null,null,"[Телефон]"]
[]
[null,null,"Продавец","Задание","Условия оплаты",null,"Срок"]
[{"$nulls":4},"При получении"]
[]
[null,"QUANTITY","Кол-во","Описание",null,"Цена за единицу","Итого по позиции"]
[{"$nulls":6},{"$f":"IF(SUM(C19)>0,SUM(C19*F19),\"\")","v":""}]
[{"$nulls":6},""]
[{"$nulls":6},""]
[{"$nulls":3}," ",null,null,""]
[{"$nulls":6},""]
[{"$nulls":6},""]
[{"$nulls":6},""]
[{"$nulls":6},""]
[{"$nulls":6},""]
[{"$nulls":6},""]
[{"$nulls":6},""]
[{"$nulls":6},""]
[{"$nulls":6},""]
[{"$nulls":6},""]
[{"$nulls":6},""]
[{"$nulls":6},""]
[{"$nulls":6},""]
[{"$nulls":6},""]
[{"$nulls":6},""]
[{"$nulls":5},"Промежуточный итог",{"$f":"IF(SUM(G19:G37)>0,SUM(G19:G37),\"\")","v":""}]
[{"$nulls":4},"Налог на продажи",{"v":0.095,"d":"9.50%"},{"$f":"IF(SUM(G38)>0,SUM(G38*F39),\"\")","v":""}]
[{"$nulls":5},"ИТОГО",{"$f":"IF(SUM(G38)>0,SUM(G38,G39),\"\")","v":""}]
[null,null,"Получатель по чекам: [Название вашей организации]"]
[null,null,"БЛАГОДАРИМ ЗА СОТРУДНИЧЕСТВО."]

{"sheet":"Использование шаблона","index":1,"n_rows":2,"n_cols":2,"rows_kept":2}
[]
[null,"Использование счета за обслуживание\n\nС помощью этого шаблона можно создавать профессионально выглядящие счета, которые легко заполняются и понятны клиентам.\n\nСначала в верхней части шаблона укажите название своей организации, ее адрес и номер телефона в ячейках с C3 по C7 вкладки «Счет за обслуживание», а затем сохраните файл как шаблон Excel (XLTX-файл), чтобы в эти ячейки всегда подставлялись соответствующие данные. Сохраните шаблон в доступном месте. Если сохранить его в папке с шаблонами (обычно она находится по адресу Users\\<имя_пользователя>\\AppData\\Roaming\\Microsoft\\Templates), его можно будет легко открыть, выбрав команду Создать и категорию Мои шаблоны. Кроме того, можно выбрать вариант Из существующего документа, а затем найти и открыть XLTX-файл. Так или иначе, при первом сохранении файла будет предложено сохранить его как книгу в формате XLSX.\n\nУкажите номер счета и код клиента. Дата будет подставлена автоматически. Затем введите сведения о клиенте: ФИО контактного лица, название организации, адрес и телефон. Укажите ставку налога в ячейке F39. Введите название организации в ячейку C41. Наконец, введите сведения о сделке в ячейки C19-F39."]